[Event "Turkish Cup 2024"]
[Site "Denizli"]
[Date "2024.08.04"]
[Round "9"]
[White "Seker, Cinar"]
[Black "Cicek, Bilal Emre"]
[Result "1-0"]
[ECO "B40"]
[WhiteElo "1815"]
[BlackElo "1963"]
[Annotator "RC"]
[PlyCount "57"]
[EventDate "2024.08.01"]
[EventType "swiss"]
[EventCountry "TUR"]
[SourceTitle "playchess.com"]
[Source "ChessBase"]
[SourceQuality "1"]
[TimeControl "5400+30"]

1. e4 {[%emt 0:01:00]} c5 {[%emt 0:03:00]} 2. Nf3 {[%emt 0:00:00]} e6 {[%emt 0:00:30]} 3. b3 {[%emt 0:00:00]} a6 {[%emt 0:00:30]} 4. Bb2 {[%emt 0:00:30]} Nc6 {[%emt 0:00:00]} 5. c4 {[%emt 0:00:00]} d6 {[%emt 0:01:00]} 6. g3 {[%emt 0:00:00]} e5 {[%emt 0:01:30]} 7. Nc3 {[%emt 0:00:30]} Nge7 {[%emt 0:00:00]} 8. Bg2 {[%emt 0:00:30]} g6 {[%emt 0:00:00]} 9. d3 {[%emt 0:00:30]} Bg7 {[%emt 0:00:30]} 10. Nd2 {[%emt 0:03:30]} O-O {[%emt 0:00:30]} 11. h4 {[%emt 0:06:30]} h6 {[%emt 0:02:30]} 12. g4 {[%emt 0:02:30]} Nd4 {[%emt 0:02:30]} 13. Nf1 {[%emt 0:03:30]} f5 {[%emt 0:08:30]} 14. gxf5 {[%emt 0:01:30]} gxf5 {[%emt 0:00:30]} 15. Ne3 {[%emt 0:00:30]} Ng6 {[%emt 0:08:30]} 16. exf5 {[%emt 0:02:30]} Nxh4 {[%emt 0:03:30]} 17. Bd5+ {[%emt 0:00:30]} Kh8 {[%emt 0:00:00]} 18. Qh5 {[%emt 0:01:30]} Ndxf5 {[%emt 0:05:00]} 19. O-O-O {[%emt 0:00:00]} Qe8 {[%emt 0:02:30]} 20. Rxh4 {[%emt 0:01:00]} Nxh4 {[%emt 0:01:30]} 21. Qxh4 {[%emt 0:00:00]} Rf4 {[%emt 0:00:00]} 22. Qg3 {[%emt 0:00:00]} Ra7 {[%emt 0:00:00]} 23. Ne4 {[%emt 0:02:30]} Qf8 {[%emt 0:00:30]} 24. Rh1 {[%emt 0:04:30]} b5 {[%emt 0:01:30]} 25. Qg6 {[%emt 0:01:30]} bxc4 {[%emt 0:00:30]} 26. Ng5 {[%emt 0:00:30]} Bf5 {[%emt 0:00:30]} 27. Nxf5 {[%emt 0:00:30]} Qxf5 {[%emt 0:00:30]} 28. Rxh6+ {[%emt 0:00:30]} Bxh6 {[%emt 0:00:30]} 29. Qg8# {[%emt 0:00:30]} 1-0

[Event "Turkish Cup 2024"]
[Site "Denizli"]
[Date "2024.08.04"]
[Round "9"]
[White "Saltik, Suleyman"]
[Black "Kurdas, Halil Ibrahim"]
[Result "1-0"]
[ECO "E11"]
[WhiteElo "1776"]
[BlackElo "1855"]
[Annotator "NA COMBH"]
[PlyCount "91"]
[EventDate "2024.08.01"]
[EventType "swiss"]
[EventCountry "TUR"]
[SourceTitle "playchess.com"]
[Source "ChessBase"]
[SourceQuality "1"]
[TimeControl "5400+30"]

1. d4 {[%emt 0:01:00]} d5 {[%emt 0:01:00]} 2. c4 {[%emt 0:00:30]} e6 {[%emt 0:00:00]} 3. Nf3 {[%emt 0:00:30]} Nf6 {[%emt 0:00:00]} 4. g3 {[%emt 0:00:00]} Bb4+ {[%emt 0:00:30]} 5. Bd2 {[%emt 0:00:00]} Be7 {[%emt 0:00:00]} 6. Bg2 {[%emt 0:00:30]} c6 {[%emt 0:00:00]} 7. Nc3 {[%emt 0:01:30]} Nbd7 {[%emt 0:00:30]} 8. Qc2 {[%emt 0:01:30]} b6 {[%emt 0:00:30]} 9. cxd5 {[%emt 0:05:30]} exd5 {[%emt 0:03:30]} 10. O-O {[%emt 0:03:30]} O-O {[%emt 0:01:30]} 11. e4 {[%emt 0:03:30]} dxe4 {[%emt 0:01:30]} 12. Nxe4 {[%emt 0:02:30]} Bb7 {[%emt 0:02:30]} 13. Ne5 {[%emt 0:04:30]} Rc8 {[%emt 0:11:30]} 14. Rac1 {[%emt 0:07:30]} Nxe4 {[%emt 0:03:30]} 15. Bxe4 {[%emt 0:03:30]} Nf6 {[%emt 0:00:30]} 16. Bf5 {[%emt 0:02:30]} Rc7 {[%emt 0:00:30]} 17. Bf4 {[%emt 0:02:30]} c5 {[%emt 0:02:30]} 18. dxc5 {[%emt 0:23:30]} Qd5 {[%emt 0:03:30]} 19. c6 {[%emt 0:00:30]} Rxc6 {[%emt 0:17:30]} 20. Nxc6 {[%emt 0:05:30]} Bc5 {[%emt 0:01:30]} 21. Qxc5 {[%emt 0:00:30]} Qxc5 {[%emt 0:05:30]} 22. Rxc5 {[%emt 0:00:30]} bxc5 {[%emt 0:00:00]} 23. Ne5 {[%emt 0:02:30]} Re8 {[%emt 0:00:00]} 24. h4 {[%emt 0:01:30]} g6 {[%emt 0:01:30]} 25. Nd7 {[%emt 0:05:30]} Nd5 {[%emt 0:01:30]} 26. Bg4 {[%emt 0:01:30]} c4 {[%emt 0:02:30]} 27. Bf3 {[%emt 0:01:30]} Nxf4 {[%emt 0:02:30]} 28. Nf6+ {[%emt 0:01:34]} Kf8 {[%emt 0:00:00]} 29. Nxe8 {[%emt 0:00:00]} Bxf3 {[%emt 0:00:00]} 30. gxf4 {[%emt 0:01:55]} Kxe8 {[%emt 0:00:30]} 31. Re1+ {[%emt 0:00:30]} Kd7 {[%emt 0:00:00]} 32. Re3 {[%emt 0:00:00]} Bb7 {[%emt 0:03:00]} 33. Ra3 {[%emt 0:00:00]} Kc6 {[%emt 0:02:30]} 34. Rxa7 {[%emt 0:02:46]} Kb6 {[%emt 0:00:30]} 35. Ra3 {[%emt 0:00:41]} Kc5 {[%emt 0:00:30]} 36. Kf1 {[%emt 0:00:41]} Kd4 {[%emt 0:00:30]} 37. Re3 {[%emt 0:00:00]} Ba6 {[%emt 0:01:30]} 38. Ke1 {[%emt 0:00:00]} Bc8 {[%emt 0:00:30]} 39. Kd2 {[%emt 0:00:32]} h6 {[%emt 0:00:30]} 40. Re8 {[%emt 0:02:23]} Bf5 {[%emt 0:00:30]} 41. a4 {[%emt 0:00:17]} Kc5 {[%emt 0:00:00]} 42. Kc3 {[%emt 0:00:45]} Bd7 {[%emt 0:01:00]} 43. Re5+ {[%emt 0:00:07]} Kd6 {[%emt 0:00:00]} 44. a5 {[%emt 0:00:49]} f6 {[%emt 0:00:00]} 45. Re4 {[%emt 0:00:00]} Bb5 {[%emt 0:00:00]} 46. Rxc4 {[%emt 0:01:12]} 1-0

[Event "Turkish Cup 2024"]
[Site "Denizli"]
[Date "2024.08.04"]
[Round "9"]
[White "Gunal, Yusuf Kursat"]
[Black "Akbas, Kaan"]
[Result "0-1"]
[ECO "A46"]
[WhiteElo "1773"]
[BlackElo "1990"]
[Annotator "RC"]
[PlyCount "120"]
[EventDate "2024.08.01"]
[EventType "swiss"]
[EventCountry "TUR"]
[SourceTitle "playchess.com"]
[Source "ChessBase"]
[SourceQuality "1"]
[TimeControl "5400+30"]

1. d4 {[%emt 0:01:00]} Nf6 {[%emt 0:05:00]} 2. Nf3 {[%emt 0:00:30]} e6 {[%emt 0:00:30]} 3. g3 {[%emt 0:00:00]} b5 {[%emt 0:00:30]} 4. a4 {[%emt 0:00:00]} b4 {[%emt 0:00:30]} 5. Bg2 {[%emt 0:00:30]} Bb7 {[%emt 0:00:30]} 6. c4 {[%emt 0:00:30]} c5 {[%emt 0:00:30]} 7. O-O {[%emt 0:01:30]} cxd4 {[%emt 0:04:30]} 8. Nxd4 {[%emt 0:01:30]} Bxg2 {[%emt 0:01:30]} 9. Kxg2 {[%emt 0:00:00]} Bc5 {[%emt 0:00:00]} 10. Nb3 {[%emt 0:03:00]} Be7 {[%emt 0:00:00]} 11. a5 {[%emt 0:19:30]} O-O {[%emt 0:01:30]} 12. Qd3 {[%emt 0:09:30]} Nc6 {[%emt 0:00:30]} 13. Bf4 {[%emt 0:01:30]} d5 {[%emt 0:02:30]} 14. cxd5 {[%emt 0:01:30]} Nxd5 {[%emt 0:00:30]} 15. Rd1 {[%emt 0:04:30]} Bf6 {[%emt 0:02:30]} 16. Ra2 {[%emt 0:01:30]} Qe7 {[%emt 0:06:30]} 17. N1d2 {[%emt 0:05:30]} Rfd8 {[%emt 0:08:30]} 18. Qa6 {[%emt 0:05:30]} e5 {[%emt 0:15:30]} 19. Be3 {[%emt 0:04:30]} Nxe3+ {[%emt 0:06:30]} 20. fxe3 {[%emt 0:00:30]} Rd6 {[%emt 0:01:30]} 21. Qb5 {[%emt 0:02:30]} Rad8 {[%emt 0:02:30]} 22. Rc1 {[%emt 0:09:30]} Qe6 {[%emt 0:10:30]} 23. Qc4 {[%emt 0:03:30]} Qf5 {[%emt 0:01:30]} 24. Rf1 {[%emt 0:02:30]} Qg5 {[%emt 0:05:30]} 25. Rf3 {[%emt 0:03:16]} Rxd2 {[%emt 0:07:48]} 26. Nxd2 {[%emt 0:00:30]} Rxd2 {[%emt 0:00:30]} 27. Qxc6 {[%emt 0:00:30]} h6 {[%emt 0:00:30]} 28. Qc8+ {[%emt 0:00:30]} Kh7 {[%emt 0:00:30]} 29. Kf2 {[%emt 0:00:30]} e4 {[%emt 0:00:30]} 30. Qf5+ {[%emt 0:00:30]} Qg6 {[%emt 0:00:30]} 31. Qxg6+ {[%emt 0:00:30]} Kxg6 {[%emt 0:00:30]} 32. Rf4 {[%emt 0:00:30]} b3 {[%emt 0:04:25]} 33. Ra3 {[%emt 0:11:16]} Rxb2 {[%emt 0:00:30]} 34. Rxe4 {[%emt 0:00:03]} Rb1 {[%emt 0:00:00]} 35. Rg4+ {[%emt 0:02:14]} Kf5 {[%emt 0:00:26]} 36. Rb4 {[%emt 0:00:00]} b2 {[%emt 0:00:10]} 37. Rab3 {[%emt 0:00:06]} g5 {[%emt 0:03:29]} 38. h3 {[%emt 0:01:07]} h5 {[%emt 0:01:16]} 39. Rb5+ {[%emt 0:01:48]} Ke6 {[%emt 0:00:23]} 40. Kf3 {[%emt 0:02:29]} Ra1 {[%emt 0:01:42]} 41. Ke4 {[%emt 0:00:44]} Ra4+ {[%emt 0:03:25]} 42. Kd3 {[%emt 0:00:23]} a6 {[%emt 0:00:35]} 43. Rb6+ {[%emt 0:00:43]} Ke7 {[%emt 0:00:30]} 44. Rxa6 {[%emt 0:00:30]} Ra3 {[%emt 0:00:00]} 45. Rxa3 {[%emt 0:01:37]} b1=Q+ {[%emt 0:00:00]} 46. Kc4 {[%emt 0:00:00]} Bb2 {[%emt 0:01:31]} 47. Rd3 {[%emt 0:00:45]} Qc2+ {[%emt 0:00:09]} 48. Kb5 {[%emt 0:00:12]} Be5 {[%emt 0:01:54]} 49. Ra7+ {[%emt 0:00:24]} Kf6 {[%emt 0:00:23]} 50. Rdd7 {[%emt 0:00:32]} Qxe2+ {[%emt 0:00:09]} 51. Kc6 {[%emt 0:00:31]} Qc4+ {[%emt 0:01:29]} 52. Kb6 {[%emt 0:00:01]} Bxg3 {[%emt 0:00:27]} 53. a6 {[%emt 0:01:59]} Bf2 {[%emt 0:00:26]} 54. Rac7 {[%emt 0:01:23]} Bxe3+ {[%emt 0:00:06]} 55. Kb7 {[%emt 0:00:16]} Qb5+ {[%emt 0:00:19]} 56. Ka8 {[%emt 0:00:11]} Qxa6+ {[%emt 0:00:06]} 57. Kb8 {[%emt 0:00:06]} Bf4 {[%emt 0:00:47]} 58. Rxf7+ {[%emt 0:00:30]} Kg6 {[%emt 0:00:00]} 59. Rg7+ {[%emt 0:00:03]} Kf5 {[%emt 0:00:00]} 60. Rgf7+ {[%emt 0:00:50]} Qf6 {[%emt 0:00:00]} 0-1

[Event "Turkish Cup 2024"]
[Site "Denizli"]
[Date "2024.08.04"]
[Round "9"]
[White "Er, Mira"]
[Black "Gungor, Cihan Akif"]
[Result "1/2-1/2"]
[ECO "C78"]
[WhiteElo "1770"]
[BlackElo "2024"]
[Annotator "RC"]
[PlyCount "51"]
[EventDate "2024.08.01"]
[EventType "swiss"]
[EventCountry "TUR"]
[SourceTitle "playchess.com"]
[Source "ChessBase"]
[SourceQuality "1"]
[TimeControl "5400+30"]

1. e4 {[%emt 0:01:00]} e5 {[%emt 0:01:00]} 2. Nf3 {[%emt 0:00:00]} Nc6 {[%emt 0:00:30]} 3. Bb5 {[%emt 0:00:00]} a6 {[%emt 0:00:30]} 4. Ba4 {[%emt 0:00:30]} Nf6 {[%emt 0:00:00]} 5. O-O {[%emt 0:00:00]} b5 {[%emt 0:00:00]} 6. Bb3 {[%emt 0:00:00]} Bc5 {[%emt 0:00:00]} 7. a4 {[%emt 0:00:30]} Rb8 {[%emt 0:00:00]} 8. axb5 {[%emt 0:00:30]} axb5 {[%emt 0:00:00]} 9. Nxe5 {[%emt 0:00:00]} Nxe5 {[%emt 0:00:00]} 10. d4 {[%emt 0:00:00]} Bxd4 {[%emt 0:00:00]} 11. Qxd4 {[%emt 0:00:30]} d6 {[%emt 0:00:00]} 12. f4 {[%emt 0:00:30]} c5 {[%emt 0:00:30]} 13. Qd1 {[%emt 0:00:30]} Ng6 {[%emt 0:00:30]} 14. e5 {[%emt 0:00:30]} dxe5 {[%emt 0:00:30]} 15. Qxd8+ {[%emt 0:00:30]} Kxd8 {[%emt 0:00:30]} 16. fxe5 {[%emt 0:00:30]} Nxe5 {[%emt 0:00:30]} 17. Bf4 {[%emt 0:00:30]} Nfd7 {[%emt 0:16:30]} 18. Bxf7 {[%emt 0:05:30]} Rb6 {[%emt 0:02:30]} 19. Bg5+ {[%emt 0:00:30]} Kc7 {[%emt 0:00:30]} 20. Nc3 {[%emt 0:02:30]} Bb7 {[%emt 0:10:30]} 21. Nd5+ {[%emt 0:01:30]} Bxd5 {[%emt 0:02:30]} 22. Bxd5 {[%emt 0:00:00]} Rg6 {[%emt 0:01:30]} 23. Bf4 {[%emt 0:02:00]} Kb6 {[%emt 0:00:30]} 24. Rae1 {[%emt 0:08:30]} Re8 {[%emt 0:02:30]} 25. Bg3 {[%emt 0:02:30]} Nf6 {[%emt 0:09:30]} 26. Bb3 {[%emt 0:15:30]} 1/2-1/2

[Event "Turkish Cup 2024"]
[Site "Denizli"]
[Date "2024.08.04"]
[Round "9"]
[White "Girgin, Muhammed Furkan"]
[Black "Kilic, Ihsan"]
[Result "0-1"]
[ECO "E05"]
[WhiteElo "1757"]
[BlackElo "1911"]
[Annotator "RC"]
[PlyCount "48"]
[EventDate "2024.08.01"]
[EventType "swiss"]
[EventCountry "TUR"]
[SourceTitle "playchess.com"]
[Source "ChessBase"]
[SourceQuality "1"]
[TimeControl "5400+30"]

1. d4 {[%emt 0:01:00]} d5 {[%emt 0:04:00]} 2. c4 {[%emt 0:00:00]} e6 {[%emt 0:00:00]} 3. Nf3 {[%emt 0:00:00]} Nf6 {[%emt 0:00:00]} 4. g3 {[%emt 0:00:30]} Be7 {[%emt 0:00:30]} 5. Bg2 {[%emt 0:00:00]} O-O {[%emt 0:00:30]} 6. O-O {[%emt 0:00:00]} dxc4 {[%emt 0:00:00]} 7. Qc2 {[%emt 0:00:30]} a6 {[%emt 0:04:00]} 8. a4 {[%emt 0:00:30]} Bd7 {[%emt 0:00:30]} 9. Bg5 {[%emt 0:03:30]} Bc6 {[%emt 0:01:30]} 10. Nbd2 {[%emt 0:03:30]} b5 {[%emt 0:04:30]} 11. b3 {[%emt 0:17:30]} cxb3 {[%emt 0:00:30]} 12. Nxb3 {[%emt 0:03:30]} Be4 {[%emt 0:01:30]} 13. Qb2 {[%emt 0:03:30]} Nbd7 {[%emt 0:01:30]} 14. Nbd2 {[%emt 0:07:30]} Bxf3 {[%emt 0:07:30]} 15. Nxf3 {[%emt 0:02:30]} Rb8 {[%emt 0:00:30]} 16. axb5 {[%emt 0:05:30]} axb5 {[%emt 0:03:30]} 17. Rfc1 {[%emt 0:01:30]} b4 {[%emt 0:04:30]} 18. Ra7 {[%emt 0:12:30]} Ne8 {[%emt 0:04:30]} 19. Bxe7 {[%emt 0:02:30]} Qxe7 {[%emt 0:00:30]} 20. Ne5 {[%emt 0:01:30]} Nxe5 {[%emt 0:07:30]} 21. dxe5 {[%emt 0:00:00]} g6 {[%emt 0:04:30]} 22. Bc6 {[%emt 0:07:00]} Ng7 {[%emt 0:00:30]} 23. Bf3 {[%emt 0:00:00]} Rfc8 {[%emt 0:01:30]} 24. Bb7 {[%emt 0:00:00]} c5 {[%emt 0:00:30]} 0-1

[Event "Turkish Cup 2024"]
[Site "Denizli"]
[Date "2024.08.04"]
[Round "9"]
[White "Zor, Emir Aras"]
[Black "Dirikolu, Deniz"]
[Result "1-0"]
[ECO "E24"]
[WhiteElo "1734"]
[BlackElo "1911"]
[Annotator "RC"]
[PlyCount "45"]
[EventDate "2024.08.01"]
[EventType "swiss"]
[EventCountry "TUR"]
[SourceTitle "playchess.com"]
[Source "ChessBase"]
[SourceQuality "1"]
[TimeControl "5400+30"]

1. d4 {[%emt 0:01:00]} Nf6 {[%emt 0:01:00]} 2. c4 {[%emt 0:00:30]} e6 {[%emt 0:00:30]} 3. Nc3 {[%emt 0:00:30]} Bb4 {[%emt 0:00:30]} 4. f3 {[%emt 0:00:30]} d5 {[%emt 0:00:30]} 5. a3 {[%emt 0:00:00]} Bxc3+ {[%emt 0:00:00]} 6. bxc3 {[%emt 0:00:00]} b6 {[%emt 0:00:00]} 7. Bg5 {[%emt 0:00:00]} Bb7 {[%emt 0:00:30]} 8. e3 {[%emt 0:00:00]} h6 {[%emt 0:00:30]} 9. Bh4 {[%emt 0:00:00]} Nbd7 {[%emt 0:00:30]} 10. Bd3 {[%emt 0:01:00]} c5 {[%emt 0:00:30]} 11. Ne2 {[%emt 0:00:00]} Rc8 {[%emt 0:00:30]} 12. cxd5 {[%emt 0:02:00]} exd5 {[%emt 0:00:00]} 13. O-O {[%emt 0:00:30]} O-O {[%emt 0:00:00]} 14. Bf5 {[%emt 0:02:30]} g5 {[%emt 0:03:30]} 15. Bf2 {[%emt 0:01:30]} cxd4 {[%emt 0:16:30]} 16. cxd4 {[%emt 0:00:00]} Ne8 {[%emt 0:00:30]} 17. Ng3 {[%emt 0:11:00]} Nd6 {[%emt 0:00:30]} 18. Qd3 {[%emt 0:00:30]} Rc6 {[%emt 0:14:30]} 19. e4 {[%emt 0:06:30]} Qc8 {[%emt 0:31:30]} 20. Qb1 {[%emt 0:21:30]} Rc3 {[%emt 0:13:08]} 21. e5 {[%emt 0:02:30]} Nc4 {[%emt 0:00:32]} 22. Nh5 {[%emt 0:00:00]} Bc6 {[%emt 0:01:18]} 23. Bxd7 {[%emt 0:00:00]} 1-0

[Event "Turkish Cup 2024"]
[Site "Denizli"]
[Date "2024.08.04"]
[Round "9"]
[White "Kaya, Mehmet Yigit"]
[Black "Konusoglu, Kemal Safa"]
[Result "0-1"]
[ECO "B06"]
[WhiteElo "1669"]
[BlackElo "1904"]
[Annotator "RC"]
[PlyCount "88"]
[EventDate "2024.08.01"]
[EventType "swiss"]
[EventCountry "TUR"]
[SourceTitle "playchess.com"]
[Source "ChessBase"]
[SourceQuality "1"]
[TimeControl "5400+30"]

1. e4 {[%emt 0:05:00]} g6 {[%emt 0:01:00]} 2. d4 {[%emt 0:01:30]} Bg7 {[%emt 0:00:00]} 3. Be3 {[%emt 0:02:30]} d6 {[%emt 0:00:00]} 4. Nc3 {[%emt 0:01:30]} a6 {[%emt 0:00:00]} 5. Bc4 {[%emt 0:01:30]} e6 {[%emt 0:00:00]} 6. Bb3 {[%emt 0:01:30]} b5 {[%emt 0:01:30]} 7. a3 {[%emt 0:06:30]} Bb7 {[%emt 0:00:30]} 8. f3 {[%emt 0:00:30]} Nd7 {[%emt 0:00:30]} 9. Qd2 {[%emt 0:01:30]} c5 {[%emt 0:00:30]} 10. dxc5 {[%emt 0:03:30]} dxc5 {[%emt 0:00:30]} 11. Rd1 {[%emt 0:03:30]} c4 {[%emt 0:02:30]} 12. Ba2 {[%emt 0:03:30]} Ngf6 {[%emt 0:00:30]} 13. h4 {[%emt 0:09:30]} Qe7 {[%emt 0:08:30]} 14. g4 {[%emt 0:20:30]} Rd8 {[%emt 0:15:30]} 15. h5 {[%emt 0:06:30]} Ne5 {[%emt 0:10:30]} 16. Qxd8+ {[%emt 0:05:30]} Qxd8 {[%emt 0:00:30]} 17. Rxd8+ {[%emt 0:00:00]} Kxd8 {[%emt 0:00:30]} 18. h6 {[%emt 0:00:00]} Bf8 {[%emt 0:00:00]} 19. Bd4 {[%emt 0:00:00]} Ned7 {[%emt 0:01:00]} 20. g5 {[%emt 0:07:36]} e5 {[%emt 0:00:30]} 21. Bxe5 {[%emt 0:00:00]} Nxe5 {[%emt 0:00:30]} 22. gxf6 {[%emt 0:00:00]} Nd7 {[%emt 0:03:30]} 23. Nce2 {[%emt 0:01:32]} Nxf6 {[%emt 0:01:30]} 24. Nd4 {[%emt 0:00:14]} Bc5 {[%emt 0:03:30]} 25. c3 {[%emt 0:02:10]} Nd7 {[%emt 0:02:30]} 26. Bb1 {[%emt 0:02:40]} Ne5 {[%emt 0:04:30]} 27. Kf2 {[%emt 0:01:22]} Ke7 {[%emt 0:05:30]} 28. Nge2 {[%emt 0:00:48]} Rd8 {[%emt 0:05:30]} 29. Rd1 {[%emt 0:08:29]} Ke8 {[%emt 0:00:30]} 30. Kg2 {[%emt 0:00:33]} Bf8 {[%emt 0:00:30]} 31. Rh1 {[%emt 0:00:33]} Rd6 {[%emt 0:02:30]} 32. Ng3 {[%emt 0:01:08]} Rb6 {[%emt 0:02:30]} 33. Bc2 {[%emt 0:04:01]} a5 {[%emt 0:00:00]} 34. b4 {[%emt 0:00:11]} cxb3 {[%emt 0:01:00]} 35. Bxb3 {[%emt 0:00:05]} a4 {[%emt 0:00:30]} 36. Bd5 {[%emt 0:00:30]} Bxa3 {[%emt 0:01:30]} 37. Rb1 {[%emt 0:00:20]} b4 {[%emt 0:13:04]} 38. cxb4 {[%emt 0:01:32]} Nd3 {[%emt 0:03:14]} 39. Bxb7 {[%emt 0:01:08]} Rxb7 {[%emt 0:00:30]} 40. b5 {[%emt 0:00:30]} Bb2 {[%emt 0:00:30]} 41. Rd1 {[%emt 0:00:30]} Nf4+ {[%emt 0:00:30]} 42. Kf2 {[%emt 0:00:30]} Rd7 {[%emt 0:00:30]} 43. Ke3 {[%emt 0:00:30]} Ng2+ {[%emt 0:00:30]} 44. Kf2 {[%emt 0:00:30]} Rxd4 {[%emt 0:00:30]} 0-1

[Event "Turkish Cup 2024"]
[Site "Denizli"]
[Date "2024.08.05"]
[Round "10"]
[White "Maruflu, Enes Yusuf"]
[Black "Gunduz, Umut Erdem"]
[Result "1/2-1/2"]
[ECO "C13"]
[WhiteElo "2228"]
[BlackElo "2276"]
[Annotator "NA RC"]
[PlyCount "32"]
[EventDate "2024.08.01"]
[EventType "swiss"]
[EventCountry "TUR"]
[SourceTitle "playchess.com"]
[Source "ChessBase"]
[SourceQuality "1"]
[TimeControl "5400+30"]

1. e4 {[%emt 0:01:00]} e6 {[%emt 0:02:00]} 2. d4 {[%emt 0:00:30]} d5 {[%emt 0:00:00]} 3. Nc3 {[%emt 0:00:30]} Nf6 {[%emt 0:00:00]} 4. Bg5 {[%emt 0:00:30]} dxe4 {[%emt 0:00:00]} 5. Nxe4 {[%emt 0:00:30]} Nbd7 {[%emt 0:00:00]} 6. Nf3 {[%emt 0:02:30]} h6 {[%emt 0:00:00]} 7. Bh4 {[%emt 0:03:30]} Be7 {[%emt 0:00:00]} 8. Nxf6+ {[%emt 0:00:30]} Bxf6 {[%emt 0:00:00]} 9. Bxf6 {[%emt 0:00:30]} Nxf6 {[%emt 0:00:00]} 10. Qd2 {[%emt 0:03:30]} O-O {[%emt 0:04:30]} 11. O-O-O {[%emt 0:04:30]} b6 {[%emt 0:06:30]} 12. Ne5 {[%emt 0:02:30]} c5 {[%emt 0:03:30]} 13. f3 {[%emt 0:04:30]} cxd4 {[%emt 0:06:30]} 14. Qxd4 {[%emt 0:00:30]} Bb7 {[%emt 0:06:30]} 15. Bc4 {[%emt 0:06:30]} Qc7 {[%emt 0:04:30]} 16. Qd6 {[%emt 0:01:30]} Rfc8 {[%emt 0:02:30]} 1/2-1/2

[Event "Turkish Cup 2024"]
[Site "Denizli"]
[Date "2024.08.05"]
[Round "10"]
[White "Metin, Enis"]
[Black "Mutlu, Burak Alp"]
[Result "0-1"]
[ECO "B31"]
[WhiteElo "2142"]
[BlackElo "1797"]
[Annotator "NA RC"]
[PlyCount "112"]
[EventDate "2024.08.01"]
[EventType "swiss"]
[EventCountry "TUR"]
[SourceTitle "playchess.com"]
[Source "ChessBase"]
[SourceQuality "1"]
[TimeControl "5400+30"]

1. e4 {[%emt 0:01:00]} c5 {[%emt 0:01:00]} 2. Nf3 {[%emt 0:00:30]} Nc6 {[%emt 0:00:30]} 3. Bb5 {[%emt 0:00:30]} g6 {[%emt 0:00:00]} 4. Bxc6 {[%emt 0:00:00]} dxc6 {[%emt 0:00:00]} 5. h3 {[%emt 0:00:00]} Bg7 {[%emt 0:00:30]} 6. d3 {[%emt 0:00:00]} e5 {[%emt 0:00:30]} 7. Be3 {[%emt 0:00:00]} b6 {[%emt 0:00:30]} 8. O-O {[%emt 0:00:00]} Qc7 {[%emt 0:01:30]} 9. a3 {[%emt 0:00:00]} a5 {[%emt 0:00:30]} 10. Nbd2 {[%emt 0:00:00]} Nf6 {[%emt 0:01:30]} 11. b4 {[%emt 0:03:00]} axb4 {[%emt 0:10:30]} 12. axb4 {[%emt 0:00:30]} Rxa1 {[%emt 0:00:00]} 13. Qxa1 {[%emt 0:00:30]} cxb4 {[%emt 0:00:00]} 14. Qxe5+ {[%emt 0:02:30]} Qxe5 {[%emt 0:01:30]} 15. Nxe5 {[%emt 0:01:30]} Nxe4 {[%emt 0:31:30]} 16. Nxc6 {[%emt 0:01:30]} Nxd2 {[%emt 0:03:30]} 17. Bxd2 {[%emt 0:00:00]} b3 {[%emt 0:01:30]} 18. cxb3 {[%emt 0:00:00]} Be6 {[%emt 0:01:30]} 19. b4 {[%emt 0:01:30]} Kd7 {[%emt 0:05:30]} 20. b5 {[%emt 0:03:30]} Ra8 {[%emt 0:05:30]} 21. Be3 {[%emt 0:06:30]} Bf5 {[%emt 0:11:30]} 22. Kh2 {[%emt 0:05:30]} Ra1 {[%emt 0:06:05]} 23. Rxa1 {[%emt 0:01:30]} Bxa1 {[%emt 0:00:01]} 24. d4 {[%emt 0:08:30]} Kd6 {[%emt 0:01:57]} 25. Nb4 {[%emt 0:03:30]} Bd7 {[%emt 0:05:14]} 26. Bf4+ {[%emt 0:01:30]} Ke6 {[%emt 0:00:08]} 27. d5+ {[%emt 0:01:30]} Kf5 {[%emt 0:00:29]} 28. Bc7 {[%emt 0:00:30]} Be5+ {[%emt 0:01:46]} 29. Bxe5 {[%emt 0:00:30]} Kxe5 {[%emt 0:00:03]} 30. Kg3 {[%emt 0:01:30]} Bxb5 {[%emt 0:01:15]} 31. Kf3 {[%emt 0:02:30]} Bc4 {[%emt 0:01:52]} 32. Ke3 {[%emt 0:00:00]} Bxd5 {[%emt 0:00:22]} 33. f4+ {[%emt 0:00:00]} Kd6 {[%emt 0:00:23]} 34. g4 {[%emt 0:00:00]} Kc5 {[%emt 0:03:25]} 35. Na6+ {[%emt 0:00:00]} Kc4 {[%emt 0:00:12]} 36. f5 {[%emt 0:00:00]} gxf5 {[%emt 0:01:16]} 37. gxf5 {[%emt 0:00:00]} b5 {[%emt 0:00:00]} 38. Kf4 {[%emt 0:00:30]} b4 {[%emt 0:00:36]} 39. Nxb4 {[%emt 0:00:30]} Kxb4 {[%emt 0:00:30]} 40. Kg5 {[%emt 0:00:30]} Kc5 {[%emt 0:00:26]} 41. Kh6 {[%emt 0:01:30]} Kd6 {[%emt 0:01:14]} 42. Kxh7 {[%emt 0:00:30]} Ke5 {[%emt 0:00:14]} 43. h4 {[%emt 0:00:00]} Kxf5 {[%emt 0:00:20]} 44. h5 {[%emt 0:00:00]} Ke6 {[%emt 0:01:07]} 45. h6 {[%emt 0:00:30]} Be4+ {[%emt 0:01:34]} 46. Kg7 {[%emt 0:00:00]} Ke7 {[%emt 0:00:43]} 47. Kg8 {[%emt 0:00:00]} Kf6 {[%emt 0:01:36]} 48. Kh8 {[%emt 0:00:30]} Bd3 {[%emt 0:01:21]} 49. Kg8 {[%emt 0:00:00]} Ke7 {[%emt 0:00:31]} 50. Kg7 {[%emt 0:00:00]} Bc2 {[%emt 0:00:54]} 51. Kg8 {[%emt 0:00:30]} Ke6 {[%emt 0:00:46]} 52. Kg7 {[%emt 0:00:30]} f6 {[%emt 0:00:07]} 53. Kg8 {[%emt 0:00:00]} Bg6 {[%emt 0:01:05]} 54. Kg7 {[%emt 0:00:00]} Kf5 {[%emt 0:00:00]} 55. Kg8 {[%emt 0:00:30]} Kg5 {[%emt 0:00:14]} 56. Kg7 {[%emt 0:00:30]} f5 {[%emt 0:00:00]} 0-1